Cogmind - Beta 16 *** ADVENTURER MODE // 2025.10.29 @ 01:44:07 Player: Loganathor Result: Destroyed by G-47 Trooper with Particle Gun Performance ------------- Evolutions (2) 1000 Regions Visited (5) 1000 Robots Destroyed (49) 245 Value Destroyed (1176) 1176 Prototype IDs (2) 40 Alien Tech Used (0) 0 Bonus (22) 22 TOTAL SCORE: 3483 Bonus ------- High Alert Combat Kills 22 Cogmind --------- Core Integrity 0/550 Matter 68/300 Energy 60/100 System Corruption 0% Temperature Cool (53) Movement Core (200) Ox3 Location -8/Storage Parts ------- > --- POWER (1) -------- (None) > --- PROPULSION (3) --- (None) > --- UTILITY (5) ------ Medium Storage Unit Terrain Scan Processor Advanced Targeting Computer > --- WEAPON (2) ------- (None) > --- INVENTORY (10) --- Improved Flight Unit Datajack Peak State ------------ > --- POWER ------------ Light Ion Engine > --- PROPULSION ------- Wheel Wheel Wheel > --- UTILITY ---------- Medium Storage Unit Improved Terrain Scanner Terrain Scan Processor Light Armor Plating > --- WEAPON ----------- Grenade Launcher Missile Launcher > --- INVENTORY -------- Light Ion Engine Wheel Wheel Wheel Heavy Laser Heavy Assault Rifle Datajack Mining Laser [Rating: 16] Favorites ----------- Power Light Ion Engine Engine Light Ion Engine Propulsion Wheel Wheel Wheel Utility Improved Terrain Scanner Device Improved Terrain Scanner Storage Medium Storage Unit Processor Terrain Scan Processor Hackware Hacking Suite Protection Light Armor Plating Weapon Grenade Launcher Energy Gun Heavy Laser Ballistic Gun Heavy Assault Rifle Launcher Grenade Launcher Special Weapon Mining Laser Build | -11 -10 -9 -9 -8 -8 ------- Run | Yrd Mat Mat Min Mat Sto Slots Evolved 4 | . . 2 . 2 . Power . | . . . . . . Propulsion 1 | . . 1 . . . Utility 3 | . . 1 . 2 . Weapon . | . . . . . . Parts Attached 33 | 7 3 7 9 3 4 Power 4 | 2 . . 1 . 1 Engine 4 | 2 . . 1 . 1 Core . | . . . . . . Reactor . | . . . . . . Propulsion 10 | 2 . 2 5 . 1 Treads . | . . . . . . Leg . | . . . . . . Wheel 10 | 2 . 2 5 . 1 Hover . | . . . . . . Flight . | . . . . . . Utility 9 | 1 1 4 2 . 1 Device 3 | . 1 1 1 . . Storage 2 | 1 . 1 . . . Processor 2 | . . . 1 . 1 Hackware 1 | . . 1 . . . Protection 1 | . . 1 . . . Artifact . | . . . . . . Weapon 10 | 2 2 1 1 3 1 Energy Gun 1 | . . . . . 1 Energy Cannon . | . . . . . . Ballistic Gun 4 | 2 . 1 1 . . Ballistic Cannon . | . . . . . . Launcher 3 | . 1 . . 2 . Special Weapon 2 | . 1 . . 1 . Impact Weapon . | . . . . . . Slashing Weapon . | . . . . . . Piercing Weapon . | . . . . . . Special Melee Weapon . | . . . . . . Unidentified Prototypes . | . . . . . . Parts Lost 21 | . . 5 . 9 7 Power 3 | . . 1 . 1 1 Propulsion 7 | . . 1 . 2 4 Utility 4 | . . 2 . 2 . Weapon 7 | . . 1 . 4 2 Highest Loss Streak 6 | . . 5 . 6 4 To Critical Strikes . | . . . . . . Average Backups 5 | 2 5 4 7 7 2 Power 1 | . 1 1 1 1 . Propulsion 2 | 1 3 1 2 2 1 Utility . | . . . . . . Weapon 1 | . . 1 2 2 . Tool/Special . | . . . . . . Unused Backups 5 | . 2 . . 2 1 Power . | . . . . . . Propulsion 2 | . 2 . . . . Utility . | . . . . . . Weapon 2 | . . . . 2 . Tool/Special 1 | . . . . . 1 Average Slot Usage (%) 89 | . 99 87 100 81 61 Engine 10 | . 14 11 11 8 4 Wheel 28 | . 28 28 33 26 21 Device 9 | . 13 9 11 8 . Storage 10 | . 14 11 11 9 9 Processor 5 | . . . 8 9 11 Protection 2 | . . . 2 6 . Ballistic Gun 9 | . 15 7 11 5 7 Launcher 7 | . 6 6 10 8 . Special Weapon 2 | . 5 8 . 1 . Peak Build Rating 16 | 6 9 14 14 16 14 Average Rating 11 | 5 8 11 13 13 12 On Entrance 7 | . 6 9 10 14 6 Avg Prop Armor Cover (%) . | . . . . . . Naked Turns . | . . . . . . Heaviest Build 26 | 13 16 23 23 26 20 Greatest Support 30 | 20 20 30 30 30 30 Greatest Overweight (x) . | . . . . . . Average Overweight (x) . | . . . . . . Largest Inventory Capacity 10 | 8 8 10 10 10 10 Average Capacity 9 | 7 8 8 10 10 10 Most Carried 10 | 6 8 7 10 9 6 Average Carried 5 | 2 5 4 7 7 2 Final Capacity 10 | 8 8 10 10 10 10 Final Carried 8 | 6 5 4 8 7 2 Class Distribution -------------------- 54% | Scavenger-Mutant 35% | Mutant 9% | Hacker-Mutant Dominant Class ---------------- Mutant | -10/Materials Mutant | -9/Materials Scavenger-Mutant | -9/Mines Scavenger-Mutant | -8/Materials Scavenger-Mutant | -8/Storage Resources | -11 -10 -9 -9 -8 -8 ----------- Run | Yrd Mat Mat Min Mat Sto Matter Collected 831 | 226 97 146 255 107 . Remotely . | . . . . . . Salvage Created 1238 | 173 97 298 280 283 107 Parts 107 | 16 13 21 27 21 9 Haulers Intercepted . | . . . . . . Recyclers Shooed 1 | . . . 1 . . Parts Field Recycled . | . . . . . . Retrieved Matter . | . . . . . . Parts Self-Destructed . | . . . . . . Prevented . | . . . . . . Parts Restored . | . . . . . . Kills | -11 -10 -9 -9 -8 -8 ------- Run | Yrd Mat Mat Min Mat Sto Combat Hostiles Destroyed 32 | . 6 7 2 15 2 Guns 10 | . 6 2 . . 2 AOE 22 | . . 5 2 15 . Classes Destroyed 10 | 3 1 4 1 1 . Worker 5 | 2 . . 3 . . Builder 1 | . . . 1 . . Tunneler 7 | 4 . . 3 . . Recycler 2 | 1 . . 1 . . Mechanic 1 | . . . . 1 . Operator 1 | . . 1 . . . Swarmer 10 | . 6 . . 4 . Grunt 13 | . . 4 2 7 . Brawler 2 | . . 1 . 1 . Sentry 7 | . . 2 . 3 2 Best Kill Streak 7 | 5 6 6 4 7 2 Combat Bots Only 7 | . 6 6 2 7 2 Max Kills in Single Turn 7 | 1 2 5 1 7 1 Gunslinging 1 | . 1 . . . . Exploded 7 | . . 5 1 7 . Melee . | . . . . . . Uniques/NPCs Destroyed . | . . . . . . Combat | -11 -10 -9 -9 -8 -8 -------- Run | Yrd Mat Mat Min Mat Sto Hostile Shots Fired 229 | . 24 32 5 85 83 Missed 67 | . 6 12 2 22 25 Hits 162 | . 18 20 3 63 58 Projectile 162 | . 18 20 3 63 58 AOE 1 | . . . . . 1 Critical Strikes 3 | . . . . 2 1 Damage Taken 2040 | . 117 433 26 756 708 Core 635 | . 25 56 . 182 372 Absorbed by Shields . | . . . . . . Ignored by Resistances 511 | . 36 63 8 208 196 Regen/Repaired (Parts) 29 | . . . . 29 . Core Remaining (%) 92 | 100 90 . 86 . . Volleys Fired 104 | 13 19 11 24 28 9 Largest 2 | 2 2 2 2 2 2 Hottest 100 | 40 100 100 53 100 92 Shots Fired 145 | 26 31 15 30 32 11 Gun 98 | 26 24 9 26 2 11 Cannon . | . . . . . . Launcher 31 | . . 4 4 23 . Special 16 | . 7 2 . 7 . Kinetic 89 | 26 24 9 26 2 2 Thermal 25 | . 7 2 . 7 9 Explosive 31 | . . 4 4 23 . Electromagnetic . | . . . . . . Robot Hit Streak 18 | 13 15 6 7 10 18 Robot Miss Streak 4 | 2 4 . 1 1 . Penetration Max . | . . . . . . Secondary Targets 1 | . 1 . . . . Max Gunslinging Chain 1 | . 1 . . . . Shots Hit Robots 93 | 19 15 5 24 19 11 Core Hits 74 | 11 7 11 11 29 5 Critical Kills . | . . . . . . Critical Parts Destroyed . | . . . . . . Critical Strikes . | . . . . . . Melee Attacks . | . . . . . . Impact . | . . . . . . Slashing . | . . . . . . Piercing . | . . . . . . Sneak Attacks . | . . . . . . Combat Hostiles . | . . . . . . Follow-up Attacks . | . . . . . . Damage Inflicted 2740 | 196 160 316 453 1450 165 Guns 896 | 196 160 64 294 17 165 Cannons . | . . . . . . Explosions 1820 | . . 252 159 1409 . Melee . | . . . . . . Ramming . | . . . . . . Kinetic 748 | 196 160 64 294 17 17 Thermal 172 | . . . . 24 148 Explosive 1820 | . . 252 159 1409 . Electromagnetic . | . . . . . . Impact . | . . . . . . Slashing . | . . . . . . Piercing . | . . . . . . Highest Corruption 4 | . . 4 4 . . Average Corruption 3 | . . 2 4 . . Corruption Purged . | . . . . . . Corruption Blocked . | . . . . . . Effects 13 | . . 2 11 . . Message Errors 4 | . . 1 3 . . Matter Fused 3 | . . . 3 . . Heat Flow Errors 3 | . . 1 2 . . Energy Discharges 2 | . . . 2 . . Data Loss (major) 1 | . . . 1 . . Overload Shots . | . . . . . . Overflow Damage 17 | . . . . 17 . Projectiles . | . . . . . . Explosions 17 | . . . . 17 . Melee . | . . . . . . Knockbacks . | . . . . . . Impact . | . . . . . . Kinetic . | . . . . . . Secondary . | . . . . . . Self-Inflicted Damage 25 | . . 8 . 17 . Shots 2 | . . 1 . 1 . Rammed . | . . . . . . Targets Rammed . | . . . . . . Kicked . | . . . . . . Crushed . | . . . . . . Highest Temperature 164 | . 60 164 161 35 114 Average Temperature 34 | . 32 28 64 13 63 Received Heat Transfer 762 | . . 114 18 360 270 Siege Activations . | . . . . . . Martial Activations . | . . . . . . Shielding Activations . | . . . . . . Robots Disrupted . | . . . . . . Combat Hostiles . | . . . . . . Robots Corrupted . | . . . . . . Combat Hostiles . | . . . . . . Parts Fried . | . . . . . . Impact Corruptions . | . . . . . . Robots Melted . | . . . . . . Combat Hostiles . | . . . . . . Parts Melted . | . . . . . . Heat Transferred 346 | . . . . 50 296 Parts Sabotaged . | . . . . . . Parts Stolen . | . . . . . . Parts Stripped . | . . . . . . Power Chain Reactions . | . . . . . . Alert | -11 -10 -9 -9 -8 -8 ------- Run | Yrd Mat Mat Min Mat Sto Maximum Alert Level 2 | . . 1 . 2 . Low Security (%) 89 | 100 100 89 100 58 100 Level 1 7 | . . 10 . 25 . Level 2 3 | . . . . 16 . Level 3 . | . . . . . . Level 4 . | . . . . . . Level 5 . | . . . . . . High Security . | . . . . . . Max Security . | . . . . . . Peak Influence 436 | 10 120 230 75 436 122 Initial 122 | . 5 16 75 . 122 Average 74 | 3 68 58 31 166 97 Influence Increases 1330 | 35 145 400 110 520 120 Destroy 0b10 Robot/C 640 | . 120 140 40 300 40 Destroy 0b10 Robot/NC 85 | 35 . 5 40 5 . Destroy Leader 160 | . 20 40 10 70 20 Successful Hack 3 | . . 3 . . . Disable Machine 36 | . . . . 36 . Destroy Structure 166 | . 5 32 20 109 . Partial Spotted 45 | . . 30 . . 15 Lose Combat Pursuer 195 | . . 150 . . 45 Influence Decreases 1238 | 25 110 215 340 180 368 Entered New Map 407 | . 5 29 155 . 218 Time Decay 621 | 25 105 136 185 90 80 Lost Part 210 | . . 50 . 90 70 Squads Dispatched 6 | . . . 1 5 . Investigation . | . . . . . . Extermination . | . . . . . . Reinforcement 3 | . . . 1 2 . Assault . | . . . . . . Garrison 3 | . . . . 3 . Intercept . | . . . . . . Searches Triggered . | . . . . . . Construction Impeded 2 | . . . 1 1 . Haulers Reinforced . | . . . . . . Active Scanning Responses . | . . . . . . Cargo Convoy Interrupts . | . . . . . . Stealth | -11 -10 -9 -9 -8 -8 --------- Run | Yrd Mat Mat Min Mat Sto Distress Signals 5 | . . 2 . . 3 Communications Jammed . | . . . . . . Distress Signals . | . . . . . . Times Spotted 62 | . 6 17 2 24 13 Peak Tracking Total 10 | . 3 7 2 7 10 Tactical Retreats 7 | . . 6 . . 1 Traps | -11 -10 -9 -9 -8 -8 ------- Run | Yrd Mat Mat Min Mat Sto Traps Triggered . | . . . . . . Indirectly . | . . . . . . Trap Hack Attempts . | . . . . . . Triggered . | . . . . . . Disarmed . | . . . . . . Reprogrammed . | . . . . . . Reused . | . . . . . . Traps Extracted . | . . . . . . Installed . | . . . . . . Triggered . | . . . . . . Machines | -11 -10 -9 -9 -8 -8 ---------- Run | Yrd Mat Mat Min Mat Sto Machines Disabled 4 | . . . . 4 . Max in Single Turn 1 | . . . . 1 . Machines Repaired . | . . . . . . Machines Dismantled . | . . . . . . Machines Sabotaged . | . . . . . . Overloaded Fab Kills . | . . . . . . Hacking | -11 -10 -9 -9 -8 -8 --------- Run | Yrd Mat Mat Min Mat Sto Machines Accessed 8 | . 2 3 . 3 . Terminals 5 | . 1 2 . 2 . Fabricators . | . . . . . . Repair Stations 1 | . . . . 1 . Recycling Units 1 | . 1 . . . . Scanalyzers 1 | . . 1 . . . Garrison Access . | . . . . . . Total Hacks 21 | . 4 11 . 6 . Successful 19 | . 4 9 . 6 . Failed 1 | . . 1 . . . Catastrophic . | . . . . . . Database Lockouts 1 | . . 1 . . . Manual . | . . . . . . Terminals 11 | . 1 6 . 4 . Fabricators . | . . . . . . Repair Stations 2 | . . . . 2 . Recycling Units 3 | . 3 . . . . Scanalyzers 5 | . . 5 . . . Garrison Access . | . . . . . . Terminal Hacks 10 | . 1 5 . 4 . Record 5 | . 1 2 . 2 . Prototype ID Bank 1 | . . . . 1 . Emergency Access Points 1 | . . 1 . . . Alert Level 1 | . . 1 . . . Hauler Manifests 1 | . . . . 1 . Zone Layout 1 | . . 1 . . . Fabricator Hacks . | . . . . . . Repair Station Hacks 2 | . . . . 2 . Scan Component 1 | . . . . 1 . Repair 1 | . . . . 1 . Recycling Unit Hacks 3 | . 3 . . . . Recycle Component 1 | . 1 . . . . Report Inventory 1 | . 1 . . . . Retrieve Matter 1 | . 1 . . . . Scanalyzer 4 | . . 4 . . . Insert Component 1 | . . 1 . . . Analyze 1 | . . 1 . . . Retrieve Study 2 | . . 2 . . . Garrison Access Hacks . | . . . . . . Unauthorized Hacks . | . . . . . . Terminals . | . . . . . . Fabricators . | . . . . . . Repair Stations . | . . . . . . Recycling Units . | . . . . . . Scanalyzers . | . . . . . . Garrison Access . | . . . . . . Data Cores Recovered 1 | . . 1 . . . Used . | . . . . . . Hacking Detections 3 | . . 2 . 1 . Full Trace Events 2 | . . 2 . . . Feedback Events 1 | . . 1 . . . Corruption 1 | . . 1 . . . Feedback Blocked . | . . . . . . Robot Schematics Acquired . | . . . . . . Robots Built . | . . . . . . Authchips . | . . . . . . Time . | . . . . . . Total Robot Build Rating . | . . . . . . Part Schematics Acquired 1 | . . 1 . . . Parts Built . | . . . . . . Authchips . | . . . . . . Time . | . . . . . . Total Part Build Rating . | . . . . . . Part Studies Acquired 2 | . . 2 . . . Parts Repaired 1 | . . . . 1 . Time 26 | . . . . 26 . Parts Recycled 1 | . 1 . . . . Recycled Matter . | . . . . . . Retrieved Matter 79 | . 79 . . . . Retrieved Components . | . . . . . . Parts Scanalyzed 1 | . . 1 . . . Part Schematics Acquired 1 | . . 1 . . . Parts Damaged . | . . . . . . Bothacking | -11 -10 -9 -9 -8 -8 ------------ Run | Yrd Mat Mat Min Mat Sto Used RIF Installer . | . . . . . . Robots Hacked . | . . . . . . Non-combat . | . . . . . . Combat . | . . . . . . Robot Hacks Applied . | . . . . . . Relay Couplers Released . | . . . . . . Fabnet Peak Effective % . | . . . . . . Robots Rewired . | . . . . . . Allies Hacked . | . . . . . . Hacks Repelled . | . . . . . . Allies | -11 -10 -9 -9 -8 -8 -------- Run | Yrd Mat Mat Min Mat Sto Total Allies . | . . . . . . Largest Group . | . . . . . . Highest-Rated Group . | . . . . . . Highest-Rated Ally . | . . . . . . Total Orders . | . . . . . . Ally Attacks . | . . . . . . Total Damage . | . . . . . . Kills . | . . . . . . Allies Corrupted . | . . . . . . Allies Melted . | . . . . . . Intel | -11 -10 -9 -9 -8 -8 ------- Run | Yrd Mat Mat Min Mat Sto Active Infowar (turns) 1318 | . 236 286 450 346 . Terrain 1318 | . 236 286 450 346 . Robot Analysis Total . | . . . . . . Derelict Logs Recovered . | . . . . . . Drone Launches . | . . . . . . Drone Recoveries . | . . . . . . Exploration | -11 -10 -9 -9 -8 -8 ------------- Run | Yrd Mat Mat Min Mat Sto Turns Passed 1761 | 108 239 357 528 368 161 Spaces Moved 1314 | 66 177 383 342 221 125 Core 9 | 9 . . . . . Treads . | . . . . . . Legs . | . . . . . . Wheels 1305 | 57 177 383 342 221 125 Hover . | . . . . . . Flight . | . . . . . . Fastest Speed 50 | 50 80 80 80 80 80 Average Speed 79 | 75 80 80 80 80 80 Slowest Speed 80 | 80 80 80 80 80 80 Overloaded Moves . | . . . . . . Propulsion Burnouts . | . . . . . . Robots Hopped . | . . . . . . Potential Cave-ins 4 | . 2 . . 2 . Cave-ins Triggered 1 | . . 1 . . . Exploration Rate (%) 28 | 4 25 32 42 30 37 Regions Visited 5 Branch Regions 2 Pre-discovered Areas . | . . . . . . Known Exits Taken . | . . . . . . Unknown Exits Taken 5 | 1 1 1 1 1 . Scrap Searched 1 | . . . 1 . . Spaces Dug 31 | . 7 18 . 6 . Terrain Destroyed 211 | . 7 35 32 137 . Melee . | . . . . . . Projectile 15 | . 7 2 . 6 . AOE 196 | . . 33 32 131 . Terrain Rammed . | . . . . . . Walls Destroyed . | . . . . . . Machines Disabled . | . . . . . . Actions | -11 -10 -9 -9 -8 -8 --------- Run | Yrd Mat Mat Min Mat Sto Total 1851 | 99 232 415 568 363 174 Wait 345 | 2 27 4 179 101 32 Move 1309 | 65 176 382 341 220 125 Hop . | . . . . . . Pick Up 38 | 12 4 7 8 6 1 Fast Attach . | . . . . . . Attach 26 | 6 1 7 1 5 6 Detach . | . . . . . . Swap 17 | 1 2 3 9 1 1 Drop 12 | . 3 1 6 2 . Fire 104 | 13 19 11 24 28 9 Melee . | . . . . . . Ram . | . . . . . . Kick . | . . . . . . Crush . | . . . . . . Escape Stasis . | . . . . . . Rewire . | . . . . . . Trap . | . . . . . . Miscellaneous . | . . . . . . Route ------- -11/Scrapyard -10/Materials (discovered 2 exits: *Mat / [Sub]) -9/Materials -9/Mines (discovered 2 exits: *Mat x2) -8/Materials -8/Storage History --------- Turn | Location | Event 24 | -11/Scrapyard | Discovered new exit (range 16) 109 | -11/Scrapyard | Entered Materials 224 | -10/Materials | Discovered new exit (range 14) 302 | -10/Materials | Build established: Mutant 321 | -10/Materials | Discovered new exit (range 11) 348 | -10/Materials | Entered another Materials area 348 | -9/Materials | Evolved 2 slots: Propulsion x1, Utility x1 514 | -9/Materials | Central database locked down 627 | -9/Materials | Crushed by falling debris 665 | -9/Materials | Lost 5 parts (1p1n2u1w) 694 | -9/Materials | Discovered new exit (range 15) 705 | -9/Materials | Entered Mines 788 | -9/Mines | Met a Derelict bent on vengeance 931 | -9/Mines | Discovered new exit (range 8) 1066 | -9/Mines | Build established: Scavenger-Mutant 1169 | -9/Mines | Discovered new exit (range 7) 1233 | -9/Mines | Entered Materials 1233 | -8/Materials | Evolved 2 slots: Utility x2 1290 | -8/Materials | Repaired Grenade Launcher+ 1439 | -8/Materials | Destroyed 7 combat bots 1592 | -8/Materials | Discovered new exit (range 9) 1601 | -8/Materials | Entered Storage 1616 | -8/Storage | Lost 6 parts (1p2n1u2w) 1727 | -8/Storage | Lost 3 parts (1p2n) 1728 | -8/Storage | Core integrity fell below 50% 1756 | -8/Storage | Core integrity fell below 20% 1762 | -8/Storage | Destroyed by G-47 Trooper with Particle Gun Last Messages --------------- Slug penetrates Compression Vault. Wheel destroyed. Hvy. Assault Rifle destroyed. Slug penetrates Compression Vault. Y-45 Defender destroyed. Slug penetrates Compression Vault. Wheel destroyed. Compression Vault explodes. G-47 Trooper destroyed. Penetrated by Slug. G-50 Soldier suffers critical hit (Destroy). G-50 Soldier destroyed. Hvy. Laser destroyed. Critical hit (Burn: +37). U-05 Engineer lays Concrete. R-06 Scavenger destroyed. U-05 Engineer lays Concrete. K-01 Serf collects debris. Transfer Shaft disabled. U-05 Engineer lays Concrete. Map ----- +----------------------------------------------------+ | ?????????????????????????????????????????????????? | | ????????????????????????????????????????#+#####??? | | ???????????????????????????????????????? #??? | | ???????????????????????????????????????? #??? | | ???????????????????????????????????????? #??? | | ??????????????????????????????????????? = #??? | | ?????????????????????????????????????? ]% #??# | | ?????????????????????????????????????" ]] #??? | | ?????????????????????????????????????# "Y" ] ##?? | | ?????????????????????????????????????? """ ??? | | ???????????????????????????????????????? ????? | | ?????????????????????????????????#########+####### | | ?????????????????????????????????# | | ?????????????????????????????????# | | ?????????????????????????????????# | | ?????????????????????????????????# #####+######### | | ?????????????????????????????????# #???# ?????## | | ???????????????????????????###???# #???T #????# | | ???????????????????###?##### ##### #??##"""#????## | | ??????????????# # ## #?????????????# | | ??????????????" """# "" ## #?????????????# | | ??????????????T """ Y"G ## #?????????????# | | ??????????????? """ ""= ## #?????????????# | | ????????????????? * h% ## #?????????????# | | ???????????????? """ !== Y u/ #????????#????? | | ???????????????? """=!@%! # #???????## #### | | ???????????????? "" %*%! # #???????# ! """ | | ??????????????? % g[ k # # "?????# """ | | ???????????????####+#### #### + #?????# """ | | ????????????/ #T#?????# | | ????????????# #???????# | | ???????????????#####+###########+#+#???????#! | | ?????????????????????????????# ! #???????# | | ?????????????????????????????#] #???????# | | ?????????????????????????????# #???????####### | | ?????????????????????????????# / #?????????????? | | ?????????????????????????????# #?????????????? | | ?????????????????????????????# #?????????????? | | ?????????????????????????????# #?????????????? | | ?????????????????????????????# [#?????????????? | | ?????????????????????????????#! #?????????????? | | ?????????????????????????????# #?????????????? | | ?????????????????????????????#% #?????????????? | | ?????????????????????????????# #?????????????? | | ?????????????????????????????#######?????????????? | | ?????????????????????????????????????????????????? | | ?????????????????????????????????????????????????? | | ?????????????????????????????????????????????????? | | ?????????????????????????????????????????????????? | | ?????????????????????????????????????????????????? | +----------------------------------------------------+ Best States ------------- Heat Dissipation 38 Energy Generation 12 Energy Capacity 250 Matter Stores 300 Matter Capacity 300 Sight Range 16 Terrain Scan Range 16 Terrain Scan Density 85 Armor Coverage 150 Resistance: KI 20 Resistance: TH 20 Resistance: EX 20 Resistance: EM 20 Resistance: I 20 Resistance: S 20 Resistance: P 20 Evasion (%) 50 Targeting Accuracy 8 Offensive Hacking 20 Item Schematics ----------------- Datajack | -9/Materials | Scanalyzed Robot Schematics ------------------ None Fabricated ------------ Nothing Repaired ---------- Grenade Launcher | 51% | -8/Materials Studied --------- Grenade Launcher | -9/Materials | Hacked Ion Engine | -9/Materials | Hacked Alien Tech Used ----------------- None Achievements -------------- DATA ERROR: Steam Global Achievement% I Have A Map? Item+ Organ Harvest Quick And Dirty Resistances Are Futile Shopping List There's More Where That Came From Challenges ------------ None Game ------ Seed MappingBoltInjector Manual? 0 Play Time 00:44:51 Cumulative 9.4 hours Start 2025.10.29 @ 00:53:40 End 2025.10.29 @ 01:44:07 Sessions 1 Manual Loads 0 Difficulty Adventurer Special Mode None Game No. 18 Rogue 5 Adventurer 13 Explorer 0 Win Type - Total 0 Types 0/0/0/0/0/0/0/0/0/0 Lore% 7 Gallery% 15 Achievement% 9 Wizard Run 0 Options --------- Layout 1 ASCII 0 Keyboard 0 Movement Mouse Keybinds 0 Fullscreen 2 Font 48/Smallcaps Map View 76x35 Zoom Use 0% Tactical HUD 0 Map Filters NONE Filters NONE Steam 1 RUN: 88406fe8-5c94-4ac2-859f-ba8ded80b5cf